[Event "Early-Titled-Tuesday-Blitz-January-23-2024"]
[Site "Chess.com"]
[Date "2024.01.23"]
[Round "8"]
[White "CarlosjPineror"]
[Black "m_ezat"]
[Result "1-0"]
[WhiteElo "2609"]
[BlackElo "2457"]
[TimeControl "180+1"]
[EndTime "9:28:36 PST"]
[Termination "CarlosjPineror won on time"]

1. e4 {[%clk 0:03:00.9]} 1... e5 {[%clk 0:02:48.5]} 2. Nf3 {[%clk 0:03:00.2]}
2... Nc6 {[%clk 0:02:43.9]} 3. Bb5 {[%clk 0:03:00.1]} 3... Nge7 {[%clk
0:02:41.3]} 4. c3 {[%clk 0:02:53.1]} 4... g6 {[%clk 0:02:31.4]} 5. h4 {[%clk
0:02:51.1]} 5... Bg7 {[%clk 0:02:29.5]} 6. h5 {[%clk 0:02:50.8]} 6... a6 {[%clk
0:02:26.7]} 7. Ba4 {[%clk 0:02:50.5]} 7... O-O {[%clk 0:02:21.7]} 8. d3 {[%clk
0:02:45.2]} 8... d5 {[%clk 0:02:13.3]} 9. Nbd2 {[%clk 0:02:44]} 9... Bg4 {[%clk
0:02:09.3]} 10. hxg6 {[%clk 0:02:41.8]} 10... hxg6 {[%clk 0:02:06.1]} 11. Qe2
{[%clk 0:02:39.1]} 11... b5 {[%clk 0:02:04.2]} 12. Bc2 {[%clk 0:02:33.7]} 12...
b4 {[%clk 0:02:03.1]} 13. Nf1 {[%clk 0:02:32.4]} 13... bxc3 {[%clk 0:01:55.6]}
14. bxc3 {[%clk 0:02:33.3]} 14... d4 {[%clk 0:01:55.8]} 15. c4 {[%clk
0:02:26.5]} 15... Nb4 {[%clk 0:01:55.1]} 16. Bb1 {[%clk 0:02:18.1]} 16... c5
{[%clk 0:01:54.9]} 17. a3 {[%clk 0:02:17.3]} 17... Qa5 {[%clk 0:01:50.7]} 18.
Bd2 {[%clk 0:02:15.7]} 18... Qa4 {[%clk 0:01:50.8]} 19. Qd1 {[%clk 0:02:10.7]}
19... Qxd1+ {[%clk 0:01:47]} 20. Kxd1 {[%clk 0:02:11.6]} 20... Nbc6 {[%clk
0:01:45.9]} 21. Bc2 {[%clk 0:02:08.2]} 21... Rfb8 {[%clk 0:01:44.5]} 22. Kc1
{[%clk 0:02:04.5]} 22... Bd7 {[%clk 0:01:40.5]} 23. Ba4 {[%clk 0:01:59.5]} 23...
Rb6 {[%clk 0:01:37.8]} 24. Rb1 {[%clk 0:01:56.3]} 24... Rab8 {[%clk 0:01:33.9]}
25. Rxb6 {[%clk 0:01:55.6]} 25... Rxb6 {[%clk 0:01:34.6]} 26. Ne1 {[%clk
0:01:52.3]} 26... Nb8 {[%clk 0:01:34]} 27. Bxd7 {[%clk 0:01:52.3]} 27... Nxd7
{[%clk 0:01:33.9]} 28. Kc2 {[%clk 0:01:50.3]} 28... Nc6 {[%clk 0:01:33.1]} 29.
Ng3 {[%clk 0:01:45.9]} 29... a5 {[%clk 0:01:33]} 30. Ne2 {[%clk 0:01:43.4]}
30... a4 {[%clk 0:01:33]} 31. Nc1 {[%clk 0:01:44.1]} 31... Nf8 {[%clk
0:01:21.8]} 32. g3 {[%clk 0:01:43.1]} 32... Ne6 {[%clk 0:01:20]} 33. f4 {[%clk
0:01:42.6]} 33... f5 {[%clk 0:01:15]} 34. exf5 {[%clk 0:01:41.5]} 34... gxf5
{[%clk 0:01:14.6]} 35. Rh5 {[%clk 0:01:40.7]} 35... e4 {[%clk 0:01:13.4]} 36.
Ng2 {[%clk 0:01:30.3]} 36... Ne7 {[%clk 0:01:08]} 37. Nh4 {[%clk 0:01:29.7]}
37... e3 {[%clk 0:00:53.7]} 38. Be1 {[%clk 0:01:28.8]} 38... Ng6 {[%clk
0:00:33]} 39. Nxg6 {[%clk 0:01:27.3]} 39... Kf7 {[%clk 0:00:32.3]} 40. Nh4
{[%clk 0:01:26.3]} 40... Bf6 {[%clk 0:00:29.8]} 41. Rxf5 {[%clk 0:01:24.9]}
41... Ke7 {[%clk 0:00:27.7]} 42. Ng6+ {[%clk 0:01:23]} 42... Kf7 {[%clk
0:00:27.8]} 43. Ne5+ {[%clk 0:01:23.4]} 43... Kg7 {[%clk 0:00:28.5]} 44. Rh5
{[%clk 0:01:23.4]} 44... Rb8 {[%clk 0:00:26.3]} 45. Nd7 {[%clk 0:01:23.1]} 45...
Rb7 {[%clk 0:00:24.8]} 46. Nxc5 {[%clk 0:01:22.4]} 46... Nxc5 {[%clk 0:00:24]}
47. Rxc5 {[%clk 0:01:23.3]} 47... Kg6 {[%clk 0:00:23.5]} 48. Ra5 {[%clk
0:01:16.4]} 48... Rh7 {[%clk 0:00:23.2]} 49. Rxa4 {[%clk 0:01:12.3]} 49... Rh2+
{[%clk 0:00:23.2]} 50. Kd1 {[%clk 0:01:12.8]} 50... Be7 {[%clk 0:00:20.5]} 51.
Ra5 {[%clk 0:01:08.3]} 51... Rb2 {[%clk 0:00:16.5]} 52. c5 {[%clk 0:01:02.9]}
52... Kf7 {[%clk 0:00:14.5]} 53. f5 {[%clk 0:01:02]} 53... Kf6 {[%clk
0:00:13.8]} 54. c6 {[%clk 0:00:59.7]} 54... Bd6 {[%clk 0:00:12.3]} 55. Rd5
{[%clk 0:00:46.3]} 55... Bb8 {[%clk 0:00:06.9]} 56. Rxd4 {[%clk 0:00:40.9]}
56... Rh2 {[%clk 0:00:02]} 57. Ne2 {[%clk 0:00:33.8]} 57... Be5 {[%clk
0:00:01.2]} 58. Rc4 {[%clk 0:00:32.5]} 1-0

[Event "Early-Titled-Tuesday-Blitz-January-23-2024"]
[Site "Chess.com"]
[Date "2024.01.23"]
[Round "8"]
[White "vovachesss"]
[Black "Iskusnyh"]
[Result "1-0"]
[WhiteElo "2847"]
[BlackElo "2654"]
[TimeControl "180+1"]
[EndTime "9:28:38 PST"]
[Termination "vovachesss won on time"]

1. e4 {[%clk 0:03:00.9]} 1... e6 {[%clk 0:02:59]} 2. d4 {[%clk 0:02:59.9]} 2...
d5 {[%clk 0:02:57.7]} 3. e5 {[%clk 0:02:58.2]} 3... c5 {[%clk 0:02:57.1]} 4. c3
{[%clk 0:02:58.8]} 4... Nc6 {[%clk 0:02:50.2]} 5. Nf3 {[%clk 0:02:58.9]} 5...
Nge7 {[%clk 0:02:47.5]} 6. Na3 {[%clk 0:02:58.7]} 6... Bd7 {[%clk 0:02:39.8]} 7.
Be2 {[%clk 0:02:57.8]} 7... cxd4 {[%clk 0:02:36.3]} 8. cxd4 {[%clk 0:02:58.7]}
8... Nf5 {[%clk 0:02:35.8]} 9. Nc2 {[%clk 0:02:59.1]} 9... Be7 {[%clk
0:02:33.8]} 10. O-O {[%clk 0:02:56.9]} 10... O-O {[%clk 0:02:32.9]} 11. Bd3
{[%clk 0:02:57.3]} 11... f6 {[%clk 0:02:31.9]} 12. Bf4 {[%clk 0:02:56.4]} 12...
fxe5 {[%clk 0:02:01.4]} 13. Nxe5 {[%clk 0:02:57.3]} 13... Bf6 {[%clk 0:01:29]}
14. Bxf5 {[%clk 0:02:35.2]} 14... exf5 {[%clk 0:01:28.4]} 15. Re1 {[%clk
0:02:33]} 15... Re8 {[%clk 0:01:24.7]} 16. Qd2 {[%clk 0:02:18]} 16... Bxe5
{[%clk 0:01:23.4]} 17. Bxe5 {[%clk 0:02:15]} 17... Qb6 {[%clk 0:01:14.9]} 18. b3
{[%clk 0:01:20.7]} 18... Rac8 {[%clk 0:01:12.1]} 19. Re3 {[%clk 0:01:16.8]}
19... Nxe5 {[%clk 0:01:03.4]} 20. dxe5 {[%clk 0:01:09.6]} 20... f4 {[%clk
0:01:03.5]} 21. Ree1 {[%clk 0:01:04.8]} 21... f3 {[%clk 0:01:03.6]} 22. Nd4
{[%clk 0:00:45.8]} 22... fxg2 {[%clk 0:00:51.1]} 23. Re3 {[%clk 0:00:45.6]}
23... Be6 {[%clk 0:00:44.9]} 24. Rg3 {[%clk 0:00:40.9]} 24... Rc7 {[%clk
0:00:43]} 25. Rd1 {[%clk 0:00:37.6]} 25... Rf7 {[%clk 0:00:41.9]} 26. Rxg2
{[%clk 0:00:35.2]} 26... Ref8 {[%clk 0:00:37]} 27. Qh6 {[%clk 0:00:22.4]} 27...
Bc8 {[%clk 0:00:15.7]} 28. e6 {[%clk 0:00:11.8]} 28... Kh8 {[%clk 0:00:15.6]}
29. Qh3 {[%clk 0:00:03.9]} 29... Rc7 {[%clk 0:00:13.6]} 30. Qh4 {[%clk 0:00:02]}
30... Re8 {[%clk 0:00:12.6]} 31. Qh5 {[%clk 0:00:02.1]} 31... Bxe6 {[%clk
0:00:09.5]} 32. Qxe8+ {[%clk 0:00:01.8]} 32... Bg8 {[%clk 0:00:09.2]} 33. Re1
{[%clk 0:00:01.8]} 33... Qxd4 {[%clk 0:00:08.5]} 34. Qd8 {[%clk 0:00:02.4]}
34... Rf7 {[%clk 0:00:05.9]} 35. Qe8 {[%clk 0:00:02.9]} 35... Rf6 {[%clk
0:00:05.4]} 36. Qe3 {[%clk 0:00:03.3]} 36... Qb2 {[%clk 0:00:04.7]} 37. Qe5
{[%clk 0:00:03]} 37... Re6 {[%clk 0:00:04.9]} 38. Qxe6 {[%clk 0:00:01.3]} 38...
Bxe6 {[%clk 0:00:04.1]} 39. Rg3 {[%clk 0:00:02.2]} 39... Qf6 {[%clk 0:00:03.3]}
40. Rge3 {[%clk 0:00:02.5]} 40... Bg8 {[%clk 0:00:03.4]} 41. Re7 {[%clk
0:00:02.7]} 41... h6 {[%clk 0:00:03.2]} 42. Rxb7 {[%clk 0:00:03.1]} 42... d4
{[%clk 0:00:03.4]} 43. Rd7 {[%clk 0:00:02.8]} 43... Qg5+ {[%clk 0:00:02.9]} 44.
Kf1 {[%clk 0:00:02.6]} 44... Bd5 {[%clk 0:00:01]} 45. Re8+ {[%clk 0:00:01.8]}
45... Kh7 {[%clk 0:00:01.1]} 46. Red8 {[%clk 0:00:02.7]} 1-0

[Event "Early-Titled-Tuesday-Blitz-January-23-2024"]
[Site "Chess.com"]
[Date "2024.01.23"]
[Round "8"]
[White "LiadCuba"]
[Black "GeorgiosSouleidis"]
[Result "0-1"]
[WhiteElo "2443"]
[BlackElo "2638"]
[TimeControl "180+1"]
[EndTime "9:28:39 PST"]
[Termination "GeorgiosSouleidis won by checkmate"]

1. d4 {[%clk 0:03:00.9]} 1... Nf6 {[%clk 0:02:59.8]} 2. c4 {[%clk 0:03:00.3]}
2... g6 {[%clk 0:02:59.9]} 3. Nc3 {[%clk 0:02:59.7]} 3... Bg7 {[%clk 0:03:00.6]}
4. e4 {[%clk 0:02:59.6]} 4... d6 {[%clk 0:03:01.1]} 5. Be2 {[%clk 0:02:58.8]}
5... O-O {[%clk 0:03:01.6]} 6. Be3 {[%clk 0:02:58.9]} 6... Nbd7 {[%clk
0:03:01.1]} 7. Nf3 {[%clk 0:02:54.5]} 7... e5 {[%clk 0:02:53.9]} 8. O-O {[%clk
0:02:50.5]} 8... exd4 {[%clk 0:02:52]} 9. Nxd4 {[%clk 0:02:51.4]} 9... Re8
{[%clk 0:02:52.5]} 10. Qc2 {[%clk 0:02:51]} 10... c6 {[%clk 0:02:48.9]} 11. Rad1
{[%clk 0:02:41.4]} 11... Qe7 {[%clk 0:02:48.9]} 12. f3 {[%clk 0:02:41.2]} 12...
d5 {[%clk 0:02:46]} 13. cxd5 {[%clk 0:02:42.1]} 13... cxd5 {[%clk 0:02:46.2]}
14. Ndb5 {[%clk 0:02:42.5]} 14... dxe4 {[%clk 0:02:26.4]} 15. fxe4 {[%clk
0:02:41.7]} 15... Ne5 {[%clk 0:02:23.1]} 16. b4 {[%clk 0:02:39]} 16... b6 {[%clk
0:00:54.9]} 17. Bg5 {[%clk 0:02:37.6]} 17... Bb7 {[%clk 0:00:47.5]} 18. Bxf6
{[%clk 0:02:31.2]} 18... Bxf6 {[%clk 0:00:44.4]} 19. Nd6 {[%clk 0:02:18]} 19...
Bg5 {[%clk 0:00:14.6]} 20. Nxe8 {[%clk 0:02:11.5]} 20... Rxe8 {[%clk 0:00:15.5]}
21. Nd5 {[%clk 0:02:11.7]} 21... Bxd5 {[%clk 0:00:14.6]} 22. exd5 {[%clk
0:02:12.3]} 22... Qxb4 {[%clk 0:00:15.1]} 23. d6 {[%clk 0:02:03.9]} 23... Rd8
{[%clk 0:00:15.1]} 24. Qc7 {[%clk 0:01:58.3]} 24... Qc5+ {[%clk 0:00:14.7]} 25.
Qxc5 {[%clk 0:01:57.9]} 25... bxc5 {[%clk 0:00:15.6]} 26. Rd5 {[%clk 0:01:54.1]}
26... Be3+ {[%clk 0:00:15.3]} 27. Kh1 {[%clk 0:01:54]} 27... Bd4 {[%clk
0:00:15.9]} 28. Rd1 {[%clk 0:01:42.7]} 28... f6 {[%clk 0:00:15.5]} 29. g4 {[%clk
0:01:24.2]} 29... Kf7 {[%clk 0:00:15.6]} 30. g5 {[%clk 0:01:24.4]} 30... Ke6
{[%clk 0:00:16]} 31. R1xd4 {[%clk 0:01:19.6]} 31... cxd4 {[%clk 0:00:16]} 32.
Rxd4 {[%clk 0:01:20.5]} 32... Rxd6 {[%clk 0:00:13.8]} 33. Ra4 {[%clk 0:01:13.2]}
33... fxg5 {[%clk 0:00:12]} 34. Rxa7 {[%clk 0:01:11.8]} 34... h5 {[%clk
0:00:12.3]} 35. Kg2 {[%clk 0:01:04.7]} 35... g4 {[%clk 0:00:12.5]} 36. Kf2
{[%clk 0:01:03.1]} 36... g5 {[%clk 0:00:12.5]} 37. Ke3 {[%clk 0:01:02.1]} 37...
Kf6 {[%clk 0:00:10.8]} 38. Ra8 {[%clk 0:00:59.7]} 38... Re6 {[%clk 0:00:10.7]}
39. Kf2 {[%clk 0:00:57.9]} 39... h4 {[%clk 0:00:10.4]} 40. a4 {[%clk 0:00:56.8]}
40... Rb6 {[%clk 0:00:09]} 41. a5 {[%clk 0:00:54.6]} 41... Rb2 {[%clk
0:00:09.2]} 42. Ke3 {[%clk 0:00:54.3]} 42... Rb3+ {[%clk 0:00:08.5]} 43. Kf2
{[%clk 0:00:50.7]} 43... g3+ {[%clk 0:00:07.1]} 44. hxg3 {[%clk 0:00:51.6]}
44... hxg3+ {[%clk 0:00:08]} 45. Kf1 {[%clk 0:00:48.8]} 45... Rb1+ {[%clk
0:00:08.2]} 46. Kg2 {[%clk 0:00:49]} 46... Rb2 {[%clk 0:00:08.4]} 47. Kxg3
{[%clk 0:00:43.2]} 47... Rxe2 {[%clk 0:00:07.5]} 48. a6 {[%clk 0:00:44.1]} 48...
Re3+ {[%clk 0:00:07.7]} 49. Kf2 {[%clk 0:00:44.2]} 49... Ra3 {[%clk 0:00:08.6]}
50. a7 {[%clk 0:00:44.3]} 50... Nf7 {[%clk 0:00:08.3]} 51. Ke2 {[%clk
0:00:43.2]} 51... g4 {[%clk 0:00:08.7]} 52. Kf2 {[%clk 0:00:43.3]} 52... Kg7
{[%clk 0:00:07.6]} 53. Kg2 {[%clk 0:00:43]} 53... Nh6 {[%clk 0:00:07.4]} 54. Kh2
{[%clk 0:00:41]} 54... Nf5 {[%clk 0:00:07.7]} 55. Kg2 {[%clk 0:00:41]} 55...
Ra2+ {[%clk 0:00:07.7]} 56. Kf1 {[%clk 0:00:41.3]} 56... g3 {[%clk 0:00:06.9]}
57. Rf8 {[%clk 0:00:30.2]} 57... Kxf8 {[%clk 0:00:06.7]} 58. a8=Q+ {[%clk
0:00:29]} 58... Rxa8 {[%clk 0:00:06]} 59. Kg2 {[%clk 0:00:29.9]} 59... Ra3
{[%clk 0:00:06.1]} 60. Kh3 {[%clk 0:00:29.1]} 60... Ke7 {[%clk 0:00:06.6]} 61.
Kg2 {[%clk 0:00:29.3]} 61... Kf6 {[%clk 0:00:07.1]} 62. Kh3 {[%clk 0:00:30.2]}
62... Kg5 {[%clk 0:00:07.6]} 63. Kg2 {[%clk 0:00:31.1]} 63... Kg4 {[%clk
0:00:08.1]} 64. Kg1 {[%clk 0:00:31.4]} 64... Ra2 {[%clk 0:00:08.4]} 65. Kf1
{[%clk 0:00:31.5]} 65... Kf3 {[%clk 0:00:08.7]} 66. Kg1 {[%clk 0:00:31.7]} 66...
Ra1# {[%clk 0:00:08.5]} 0-1

[Event "Early-Titled-Tuesday-Blitz-January-23-2024"]
[Site "Chess.com"]
[Date "2024.01.23"]
[Round "8"]
[White "SpeedofLight0"]
[Black "Sanan_Sjugirov"]
[Result "1-0"]
[WhiteElo "2931"]
[BlackElo "3007"]
[TimeControl "180+1"]
[EndTime "9:28:40 PST"]
[Termination "SpeedofLight0 won by checkmate"]

1. d4 {[%clk 0:03:00.9]} 1... Nf6 {[%clk 0:03:00]} 2. c4 {[%clk 0:02:59.9]} 2...
g6 {[%clk 0:03:00.6]} 3. Nc3 {[%clk 0:02:57.3]} 3... Bg7 {[%clk 0:03:01.1]} 4.
e4 {[%clk 0:02:57.1]} 4... d6 {[%clk 0:03:01.7]} 5. h3 {[%clk 0:02:47.1]} 5...
e5 {[%clk 0:03:01.6]} 6. d5 {[%clk 0:02:45.8]} 6... a5 {[%clk 0:03:00.6]} 7. Be3
{[%clk 0:02:45.4]} 7... Na6 {[%clk 0:02:58.7]} 8. Nf3 {[%clk 0:02:45.5]} 8...
Bd7 {[%clk 0:02:56.3]} 9. Nd2 {[%clk 0:02:44.4]} 9... h5 {[%clk 0:02:54.8]} 10.
g3 {[%clk 0:02:42.4]} 10... Bh6 {[%clk 0:02:47.9]} 11. Bxh6 {[%clk 0:02:35.4]}
11... Rxh6 {[%clk 0:02:48.8]} 12. Qe2 {[%clk 0:02:35.8]} 12... Kf8 {[%clk
0:02:41.7]} 13. Qe3 {[%clk 0:02:35.5]} 13... Kg7 {[%clk 0:02:41.2]} 14. Bd3
{[%clk 0:02:32.6]} 14... Rh8 {[%clk 0:02:36.4]} 15. O-O-O {[%clk 0:02:31.1]}
15... h4 {[%clk 0:02:32.6]} 16. f4 {[%clk 0:02:29.4]} 16... Qe7 {[%clk
0:02:26.7]} 17. f5 {[%clk 0:02:26.3]} 17... hxg3 {[%clk 0:02:21.9]} 18. Qxg3
{[%clk 0:02:21.5]} 18... Nh5 {[%clk 0:02:21.3]} 19. Qf3 {[%clk 0:02:12.9]} 19...
Nf4 {[%clk 0:02:18.9]} 20. Rdg1 {[%clk 0:02:10.9]} 20... Nc5 {[%clk 0:02:00.1]}
21. Bf1 {[%clk 0:01:56.9]} 21... Rh4 {[%clk 0:01:56.8]} 22. Rg4 {[%clk
0:01:52.6]} 22... Rah8 {[%clk 0:01:52.8]} 23. Rxh4 {[%clk 0:01:51.8]} 23... Qxh4
{[%clk 0:01:51.4]} 24. fxg6 {[%clk 0:01:17.3]} 24... fxg6 {[%clk 0:01:52.3]} 25.
Kc2 {[%clk 0:01:15.4]} 25... Rf8 {[%clk 0:01:20.3]} 26. Qe3 {[%clk 0:01:11.5]}
26... Nh5 {[%clk 0:00:57.6]} 27. Rg1 {[%clk 0:00:59.5]} 27... Qf4 {[%clk
0:00:41.5]} 28. Qe2 {[%clk 0:00:52.7]} 28... Kh6 {[%clk 0:00:29.4]} 29. Qg2
{[%clk 0:00:49]} 29... Rf6 {[%clk 0:00:27.9]} 30. Be2 {[%clk 0:00:47.7]} 30...
Qh4 {[%clk 0:00:13.4]} 31. Bxh5 {[%clk 0:00:38.5]} 31... Qxh5 {[%clk 0:00:14.3]}
32. Qg3 {[%clk 0:00:37.8]} 32... Rf4 {[%clk 0:00:10.5]} 33. Qe3 {[%clk
0:00:33.4]} 33... Kg7 {[%clk 0:00:09.1]} 34. Ne2 {[%clk 0:00:32.1]} 34... Rf6
{[%clk 0:00:08.2]} 35. Ng3 {[%clk 0:00:27.9]} 35... Qh6 {[%clk 0:00:06.3]} 36.
Qe2 {[%clk 0:00:25.1]} 36... Kh7 {[%clk 0:00:03.8]} 37. h4 {[%clk 0:00:25]}
37... Qf4 {[%clk 0:00:02.4]} 38. h5 {[%clk 0:00:24.5]} 38... g5 {[%clk
0:00:02.8]} 39. Rf1 {[%clk 0:00:23.4]} 39... Bg4 {[%clk 0:00:01.6]} 40. Rxf4
{[%clk 0:00:21.8]} 40... Rxf4 {[%clk 0:00:02.5]} 41. Qg2 {[%clk 0:00:20.8]}
41... Kh6 {[%clk 0:00:02.5]} 42. Ne2 {[%clk 0:00:19.7]} 42... Bxe2 {[%clk
0:00:02.4]} 43. Qxe2 {[%clk 0:00:20.6]} 43... g4 {[%clk 0:00:03.3]} 44. Qh2
{[%clk 0:00:12.9]} 44... Rf7 {[%clk 0:00:01.9]} 45. Qh4 {[%clk 0:00:10.2]} 45...
Rg7 {[%clk 0:00:02.5]} 46. Qf6+ {[%clk 0:00:10.5]} 46... Kh7 {[%clk 0:00:03]}
47. h6 {[%clk 0:00:10.7]} 47... Rg6 {[%clk 0:00:03.6]} 48. Qf7+ {[%clk
0:00:08.1]} 48... Kxh6 {[%clk 0:00:04.1]} 49. Nf1 {[%clk 0:00:08.5]} 49... Nxe4
{[%clk 0:00:04.1]} 50. Kd3 {[%clk 0:00:07.6]} 50... Nc5+ {[%clk 0:00:04]} 51.
Ke3 {[%clk 0:00:07.7]} 51... g3 {[%clk 0:00:04.9]} 52. Qf8+ {[%clk 0:00:07.2]}
52... Rg7 {[%clk 0:00:04.8]} 53. Nxg3 {[%clk 0:00:06.7]} 53... Kg6 {[%clk
0:00:04.6]} 54. Qf5+ {[%clk 0:00:06]} 54... Kh6 {[%clk 0:00:05.2]} 55. Qh5#
{[%clk 0:00:06.9]} 1-0

[Event "Early-Titled-Tuesday-Blitz-January-23-2024"]
[Site "Chess.com"]
[Date "2024.01.23"]
[Round "8"]
[White "Zurability"]
[Black "biostatistician"]
[Result "1-0"]
[WhiteElo "2749"]
[BlackElo "2606"]
[TimeControl "180+1"]
[EndTime "9:28:40 PST"]
[Termination "Zurability won by resignation"]

1. e4 {[%clk 0:03:00.9]} 1... e5 {[%clk 0:03:00]} 2. Nf3 {[%clk 0:03:00.1]} 2...
Nc6 {[%clk 0:03:00.1]} 3. c3 {[%clk 0:02:54]} 3... Nf6 {[%clk 0:02:58.6]} 4. d4
{[%clk 0:02:52.2]} 4... d6 {[%clk 0:02:59]} 5. Bd3 {[%clk 0:02:47.2]} 5... d5
{[%clk 0:02:53.8]} 6. Nxe5 {[%clk 0:02:41.1]} 6... Nxe5 {[%clk 0:02:50.8]} 7.
dxe5 {[%clk 0:02:42]} 7... dxe4 {[%clk 0:02:51.4]} 8. Bb5+ {[%clk 0:02:03.1]}
8... Bd7 {[%clk 0:02:49.4]} 9. Qa4 {[%clk 0:01:57.5]} 9... a6 {[%clk 0:02:10.8]}
10. exf6 {[%clk 0:01:20.1]} 10... axb5 {[%clk 0:02:09.5]} 11. Qxe4+ {[%clk
0:01:20]} 11... Be6 {[%clk 0:02:10]} 12. fxg7 {[%clk 0:01:17.7]} 12... Bxg7
{[%clk 0:02:10.9]} 13. O-O {[%clk 0:01:07.4]} 13... O-O {[%clk 0:02:10.3]} 14.
Qxb7 {[%clk 0:01:00.8]} 14... Qd3 {[%clk 0:01:57.2]} 15. Nd2 {[%clk 0:00:47.7]}
15... Be5 {[%clk 0:01:51.9]} 16. Qe4 {[%clk 0:00:39.8]} 16... Qxe4 {[%clk
0:01:39.5]} 17. Nxe4 {[%clk 0:00:39.6]} 17... Rxa2 {[%clk 0:01:38.3]} 18. Rxa2
{[%clk 0:00:39.1]} 18... Bxa2 {[%clk 0:01:39.2]} 19. Bh6 {[%clk 0:00:29.4]}
19... Rd8 {[%clk 0:01:36.5]} 20. Ra1 {[%clk 0:00:26.3]} 20... f5 {[%clk
0:01:30.6]} 21. Nc5 {[%clk 0:00:21]} 21... Bc4 {[%clk 0:01:20.7]} 22. g3 {[%clk
0:00:20.6]} 22... Kf7 {[%clk 0:01:18.2]} 23. Be3 {[%clk 0:00:19]} 23... h5
{[%clk 0:01:15.3]} 24. f3 {[%clk 0:00:15.1]} 24... h4 {[%clk 0:01:14.1]} 25. Kf2
{[%clk 0:00:15.4]} 25... Rh8 {[%clk 0:01:09.6]} 26. Kg2 {[%clk 0:00:08]} 26...
Bd5 {[%clk 0:01:06.1]} 27. Nd3 {[%clk 0:00:05.2]} 27... Bd6 {[%clk 0:01:02.2]}
28. Bf4 {[%clk 0:00:05.8]} 28... Re8 {[%clk 0:00:58.2]} 29. Bxd6 {[%clk
0:00:05.7]} 29... Re2+ {[%clk 0:00:34.2]} 30. Kf1 {[%clk 0:00:05.8]} 30... Rxh2
{[%clk 0:00:34.4]} 31. Ra7 {[%clk 0:00:05]} 31... h3 {[%clk 0:00:30.3]} 32. Bxc7
{[%clk 0:00:04.5]} 32... Bc4 {[%clk 0:00:20.9]} 33. Bf4+ {[%clk 0:00:02.6]}
33... Ke6 {[%clk 0:00:20]} 34. Ra6+ {[%clk 0:00:03]} 34... Ke7 {[%clk
0:00:18.1]} 35. Rd6 {[%clk 0:00:02.7]} 35... Rxb2 {[%clk 0:00:16.2]} 36. Kg1
{[%clk 0:00:02.8]} 36... h2+ {[%clk 0:00:14.8]} 37. Kh1 {[%clk 0:00:03]} 37...
Rc2 {[%clk 0:00:12.8]} 38. Rd4 {[%clk 0:00:02.9]} 38... Rxc3 {[%clk 0:00:12.9]}
39. Ne5 {[%clk 0:00:03.4]} 39... Rc2 {[%clk 0:00:11.1]} 40. Rd2 {[%clk
0:00:03.3]} 40... Rc3 {[%clk 0:00:09.2]} 41. Kxh2 {[%clk 0:00:03.4]} 41... Ke6
{[%clk 0:00:09.4]} 42. Nxc4 {[%clk 0:00:03.5]} 42... bxc4 {[%clk 0:00:10.3]} 43.
Kg2 {[%clk 0:00:04.1]} 43... Ra3 {[%clk 0:00:08.7]} 44. Kf2 {[%clk 0:00:04.6]}
44... c3 {[%clk 0:00:09]} 45. Rc2 {[%clk 0:00:05.1]} 45... Kd5 {[%clk
0:00:09.9]} 46. Ke3 {[%clk 0:00:04.8]} 46... Kc4 {[%clk 0:00:10.5]} 47. Be5
{[%clk 0:00:05.4]} 47... Rb3 {[%clk 0:00:10.2]} 48. g4 {[%clk 0:00:04.7]} 48...
fxg4 {[%clk 0:00:10.2]} 49. fxg4 {[%clk 0:00:05.6]} 49... Kd5 {[%clk 0:00:07.7]}
50. Bxc3 {[%clk 0:00:05.6]} 50... Rb4 {[%clk 0:00:08.6]} 51. Bxb4 {[%clk
0:00:05.5]} 51... Ke5 {[%clk 0:00:08.9]} 52. Rc5+ {[%clk 0:00:05.4]} 1-0